[Event "Dutch Internet Championship Final"]
[Site "playchess.com #038132"]
[Date "2011.06.18"]
[Round "4.7"]
[White "Jan Smeets"]
[Black "kingloek"]
[Result "1/2-1/2"]
[ECO "A07"]
[WhiteElo "2816"]
[BlackElo "2863"]
[PlyCount "157"]
[EventDate "2011.06.18"]
[EventType "match (blitz)"]
[TimeControl "180+3"]

1. Nf3 {[%emt 0:00:01]} d5 {[%emt 0:00:03]} 2. g3 {[%emt 0:00:01]} Nf6 {[%emt
0:00:03]} 3. Bg2 {[%emt 0:00:01]} Bf5 {[%emt 0:00:01]} 4. O-O {[%emt 0:00:02]}
e6 {[%emt 0:00:01]} 5. d3 {[%emt 0:00:02]} h6 {[%emt 0:00:02]} 6. Nbd2 {[%emt
0:00:02]} Bh7 {[%emt 0:00:03]} 7. b3 {[%emt 0:00:01]} c5 {[%emt 0:00:02]} 8.
Bb2 {[%emt 0:00:02]} Nc6 {[%emt 0:00:01]} 9. Ne5 {[%emt 0:00:14]} Nxe5 {[%emt
0:00:05]} 10. Bxe5 {[%emt 0:00:00]} Bd6 {[%emt 0:00:00]} 11. Bxd6 {[%emt 0:00:
09]} Qxd6 {[%emt 0:00:01]} 12. c4 {[%emt 0:00:00]} O-O {[%emt 0:00:20]} 13. Nf3
{[%emt 0:00:15]} Rad8 {[%emt 0:00:12]} 14. Qd2 {[%emt 0:00:10]} e5 {[%emt 0:00:
07]} 15. cxd5 {[%emt 0:00:02]} Nxd5 {[%emt 0:00:01]} 16. Rfd1 {[%emt 0:00:09]}
f6 {[%emt 0:00:10]} 17. Qb2 {[%emt 0:00:06]} Kh8 {[%emt 0:00:13]} 18. a3 {
[%emt 0:00:05]} a5 {[%emt 0:00:02]} 19. Nd2 {[%emt 0:00:02]} b6 {[%emt 0:00:02]
} 20. Nc4 {[%emt 0:00:17]} Qe6 {[%emt 0:00:02]} 21. b4 {[%emt 0:00:32]} cxb4 {
[%emt 0:00:09]} 22. Bxd5 {[%emt 0:00:02]} Rxd5 {[%emt 0:00:02]} 23. axb4 {
[%emt 0:00:01]} Rb5 {[%emt 0:00:01]} 24. Qa3 {[%emt 0:00:33]} Rxb4 {[%emt 0:00:
17]} 25. Rab1 {[%emt 0:00:01]} Qe7 {[%emt 0:00:35]} 26. Nxb6 {[%emt 0:00:15]}
Rxb1 {[%emt 0:00:24]} 27. Qxe7 {[%emt 0:00:02]} Rxd1+ {[%emt 0:00:01]} 28. Kg2
{[%emt 0:00:00]} Rg8 {[%emt 0:00:02]} 29. Qc5 {[%emt 0:00:19]} Ra1 {[%emt 0:00:
11]} 30. Qc3 {[%emt 0:00:10]} Ra2 {[%emt 0:00:03]} 31. Kf3 {[%emt 0:00:03]} e4+
{[%emt 0:00:22]} 32. dxe4 {[%emt 0:00:04]} Re8 {[%emt 0:00:01]} 33. e5 {[%emt
0:00:25]} Rxe5 {[%emt 0:00:05]} 34. Qc8+ {[%emt 0:00:15]} Bg8 {[%emt 0:00:02]}
35. e3 {[%emt 0:00:04]} Kh7 {[%emt 0:00:10]} 36. g4 {[%emt 0:00:09]} Rd2 {
[%emt 0:00:19] '} 37. Nd7 {[%emt 0:00:05]} Red5 {[%emt 0:00:23]} 38. Nf8+ {
[%emt 0:00:02]} Kh8 {[%emt 0:00:01]} 39. Ng6+ {[%emt 0:00:03]} Kh7 {[%emt 0:00:
01]} 40. Ne7 {[%emt 0:00:07]} Rd8 {[%emt 0:00:01]} 41. Qf5+ {[%emt 0:00:01]}
Kh8 {[%emt 0:00:02]} 42. Qxa5 {[%emt 0:00:04]} Bf7 {[%emt 0:00:06]} 43. h4 {
[%emt 0:00:04]} R2d7 {[%emt 0:00:02]} 44. h5 {[%emt 0:00:03]} Re8 {[%emt 0:00:
02]} 45. Nf5 {[%emt 0:00:03]} Be6 {[%emt 0:00:03]} 46. Nh4 {[%emt 0:00:02]} Kg8
{[%emt 0:00:05]} 47. Kg3 {[%emt 0:00:01]} Red8 {[%emt 0:00:02]} 48. f3 {[%emt
0:00:05]} Re8 {[%emt 0:00:02]} 49. e4 {[%emt 0:00:01]} Rd3 {[%emt 0:00:04]} 50.
Kf4 {[%emt 0:00:03]} Bf7 {[%emt 0:00:03]} 51. Qb5 {[%emt 0:00:01]} Red8 {[%emt
0:00:02]} 52. Nf5 {[%emt 0:00:01]} Rb3 {[%emt 0:00:02]} 53. Qc6 {[%emt 0:00:06]
} Rbd3 {[%emt 0:00:05]} 54. Ne7+ {[%emt 0:00:02]} Kf8 {[%emt 0:00:02]} 55. Nf5
{[%emt 0:00:01]} Kg8 {[%emt 0:00:01]} 56. Qc5 {[%emt 0:00:01] .} R3d7 {[%emt 0:
00:03]} 57. e5 {[%emt 0:00:05]} fxe5+ {[%emt 0:00:02]} 58. Qxe5 {[%emt 0:00:01]
} Ba2 {[%emt 0:00:03]} 59. Ne7+ {[%emt 0:00:04]} Kh8 {[%emt 0:00:04]} 60. Ng6+
{[%emt 0:00:01]} Kg8 {[%emt 0:00:02]} 61. Kg3 {[%emt 0:00:03]} Bb3 {[%emt 0:00:
08]} 62. Kh4 {[%emt 0:00:01]} Ba2 {[%emt 0:00:03]} 63. f4 {[%emt 0:00:01]} Bb3
{[%emt 0:00:09]} 64. f5 {[%emt 0:00:02]} Bf7 {[%emt 0:00:02]} 65. Nf4 {[%emt 0:
00:07]} Rd4 {[%emt 0:00:02]} 66. f6 {[%emt 0:00:10]} Ra4 {[%emt 0:00:07]} 67.
Ne6 {[%emt 0:00:11]} Re8 {[%emt 0:00:02]} 68. Qb5 {[%emt 0:00:01]} Rxg4+ {
[%emt 0:00:05]} 69. Kxg4 {[%emt 0:00:02]} Bxe6+ {[%emt 0:00:02]} 70. Kh4 {
[%emt 0:00:02]} Bf7 {[%emt 0:00:01]} 71. fxg7 {[%emt 0:00:04]} Kxg7 {[%emt 0:
00:01]} 72. Qb2+ {[%emt 0:00:01]} Kg8 {[%emt 0:00:01]} 73. Qg2+ {[%emt 0:00:03]
} Kf8 {[%emt 0:00:01]} 74. Qd2 {[%emt 0:00:04]} Re6 {[%emt 0:00:02]} 75. Qf4 {
[%emt 0:00:02]} Kg7 {[%emt 0:00:02]} 76. Qg3+ {[%emt 0:00:01]} Kf8 {[%emt 0:00:
01]} 77. Qf4 {[%emt 0:00:01]} Kg7 {[%emt 0:00:01]} 78. Qg3+ {[%emt 0:00:01]}
Kf8 {[%emt 0:00:01]} 79. Qf4 {[%emt 0:00:01] (Lag: Av=0.76s, max=18.4s)}
1/2-1/2

[Event "Dutch Internet Championship Final"]
[Site "playchess.com #038132"]
[Date "2011.06.18"]
[Round "4.8"]
[White "kingloek"]
[Black "Jan Smeets"]
[Result "0-1"]
[ECO "D15"]
[WhiteElo "2861"]
[BlackElo "2819"]
[PlyCount "156"]
[EventDate "2011.06.18"]
[EventType "match (blitz)"]
[TimeControl "180+3"]

1. d4 {[%emt 0:00:01]} d5 {[%emt 0:00:01]} 2. c4 {[%emt 0:00:02]} c6 {[%emt 0:
00:00]} 3. Nf3 {[%emt 0:00:01]} Nf6 {[%emt 0:00:01]} 4. Nc3 {[%emt 0:00:01]} a6
{[%emt 0:00:00]} 5. a4 {[%emt 0:00:01]} dxc4 {[%emt 0:00:00]} 6. g3 {[%emt 0:
00:01]} e6 {[%emt 0:00:01]} 7. Bg5 {[%emt 0:00:02]} Nbd7 {[%emt 0:00:05]} 8.
Bg2 {[%emt 0:00:07]} Bb4 {[%emt 0:00:11]} 9. O-O {[%emt 0:00:15]} h6 {[%emt 0:
00:11]} 10. Bxf6 {[%emt 0:00:02]} Qxf6 {[%emt 0:00:07]} 11. e3 {[%emt 0:00:05]}
O-O {[%emt 0:00:22]} 12. Nd2 {[%emt 0:00:04]} e5 {[%emt 0:00:02]} 13. Nxc4 {
[%emt 0:00:05]} exd4 {[%emt 0:00:06]} 14. exd4 {[%emt 0:00:01]} Rd8 {[%emt 0:
00:19]} 15. Qb3 {[%emt 0:00:08]} a5 {[%emt 0:00:08]} 16. Rad1 {[%emt 0:00:22]}
Rb8 {[%emt 0:00:16]} 17. Ne5 {[%emt 0:00:35]} Nxe5 {[%emt 0:00:06]} 18. dxe5 {
[%emt 0:00:02]} Qe7 {[%emt 0:00:00]} 19. Rxd8+ {[%emt 0:00:09]} Qxd8 {[%emt 0:
00:00]} 20. Rd1 {[%emt 0:00:14]} Qe7 {[%emt 0:00:01]} 21. h3 {[%emt 0:00:15]}
Bf5 {[%emt 0:00:16]} 22. f4 {[%emt 0:00:13]} Rd8 {[%emt 0:00:17]} 23. Kh2 {
[%emt 0:00:04]} Rd7 {[%emt 0:00:22]} 24. Ne4 {[%emt 0:00:18]} Qd8 {[%emt 0:00:
08]} 25. Nd6 {[%emt 0:00:10]} Be6 {[%emt 0:00:35]} 26. Qd3 {[%emt 0:00:07]} g6
{[%emt 0:00:04]} 27. g4 {[%emt 0:00:14]} Qh4 {[%emt 0:00:18]} 28. Qf3 {[%emt 0:
00:21]} Bd5 {[%emt 0:00:05]} 29. Qg3 {[%emt 0:00:07]} Qxg3+ {[%emt 0:00:04]}
30. Kxg3 {[%emt 0:00:01]} Bb3 {[%emt 0:00:04]} 31. Rd4 {[%emt 0:00:18]} Bxa4 {
[%emt 0:00:05]} 32. f5 {[%emt 0:00:01]} gxf5 {[%emt 0:00:08]} 33. gxf5 {[%emt
0:00:01]} Kf8 {[%emt 0:00:06]} 34. f6 {[%emt 0:00:02]} Bc2 {[%emt 0:00:05]} 35.
Kf4 {[%emt 0:00:03]} Bg6 {[%emt 0:00:04]} 36. Be4 {[%emt 0:00:03]} Bc5 {[%emt
0:00:03]} 37. Rd2 {[%emt 0:00:04]} Bxe4 {[%emt 0:00:02]} 38. Kxe4 {[%emt 0:00:
01]} a4 {[%emt 0:00:07]} 39. Rc2 {[%emt 0:00:02]} Bxd6 {[%emt 0:00:01]} 40. Rd2
{[%emt 0:00:01]} Ke8 {[%emt 0:00:02]} 41. exd6 {[%emt 0:00:02]} Rd8 {[%emt 0:
00:00]} 42. Kd4 {[%emt 0:00:08]} Kd7 {[%emt 0:00:01]} 43. Kc5 {[%emt 0:00:02]}
Re8 {[%emt 0:00:07]} 44. Kb6 {[%emt 0:00:09] .} Re6 {[%emt 0:00:01]} 45. Rd4 {
[%emt 0:00:02]} Rxd6 {[%emt 0:00:08]} 46. Rxa4 {[%emt 0:00:01]} Rxf6 {[%emt 0:
00:01]} 47. Kxb7 {[%emt 0:00:03]} Kd6 {[%emt 0:00:02]} 48. Kb6 {[%emt 0:00:05]}
Kd5 {[%emt 0:00:03]} 49. Rh4 {[%emt 0:00:06]} Re6 {[%emt 0:00:07]} 50. Rh5+ {
[%emt 0:00:04]} Ke4 {[%emt 0:00:01]} 51. Rc5 {[%emt 0:00:03]} f5 {[%emt 0:00:
01]} 52. b4 {[%emt 0:00:01]} f4 {[%emt 0:00:00]} 53. Rc4+ {[%emt 0:00:01]} Ke3
{[%emt 0:00:01]} 54. Rc3+ {[%emt 0:00:01]} Ke2 {[%emt 0:00:01]} 55. Rc2+ {
[%emt 0:00:01]} Kf1 {[%emt 0:00:02]} 56. Rxc6 {[%emt 0:00:01]} Rxc6+ {[%emt 0:
00:02]} 57. Kxc6 {[%emt 0:00:01]} f3 {[%emt 0:00:00]} 58. b5 {[%emt 0:00:00]}
f2 {[%emt 0:00:00]} 59. b6 {[%emt 0:00:01]} Kg2 {[%emt 0:00:03]} 60. b7 {[%emt
0:00:01]} f1=Q {[%emt 0:00:01]} 61. b8=Q {[%emt 0:00:01]} Qf3+ {[%emt 0:00:01]}
62. Kc5 {[%emt 0:00:10]} Kxh3 {[%emt 0:00:07]} 63. Qc8+ {[%emt 0:00:09]} Qg4 {
[%emt 0:00:03]} 64. Qf8 {[%emt 0:00:07]} Qg5+ {[%emt 0:00:08]} 65. Kd4 {[%emt
0:00:04]} Kg2 {[%emt 0:00:06]} 66. Ke4 {[%emt 0:00:05]} Qg4+ {[%emt 0:00:04]}
67. Ke3 {[%emt 0:00:02]} Qg3+ {[%emt 0:00:06]} 68. Ke2 {[%emt 0:00:01]} Qe5+ {
[%emt 0:00:04]} 69. Kd2 {[%emt 0:00:02]} Qd4+ {[%emt 0:00:01]} 70. Ke2 {[%emt
0:00:02]} Qe4+ {[%emt 0:00:01]} 71. Kd2 {[%emt 0:00:03]} h5 {[%emt 0:00:01]}
72. Qg7+ {[%emt 0:00:06]} Kh3 {[%emt 0:00:06]} 73. Qd7+ {[%emt 0:00:03]} Kh2 {
[%emt 0:00:05]} 74. Qd6+ {[%emt 0:00:03]} Kg2 {[%emt 0:00:01]} 75. Qf6 {[%emt
0:00:08]} h4 {[%emt 0:00:05]} 76. Qg5+ {[%emt 0:00:01]} Kh2 {[%emt 0:00:02]}
77. Kd1 {[%emt 0:00:04]} Qh1+ {[%emt 0:00:02]} 78. Ke2 {[%emt 0:00:03]} Qg2+ {
[%emt 0:00:00] kingloek resigns  (Lag: Av=0.91s, max=3.4s)} 0-1

[Event "Dutch Internet Championship Final"]
[Site "playchess.com #038132"]
[Date "2011.06.18"]
[Round "4.9"]
[White "Jan Smeets"]
[Black "kingloek"]
[Result "0-1"]
[ECO "A07"]
[WhiteElo "2838"]
[BlackElo "2842"]
[PlyCount "76"]
[EventDate "2011.06.18"]
[EventType "match (blitz)"]
[TimeControl "180+3"]

1. Nf3 {[%emt 0:00:03]} d5 {[%emt 0:00:02]} 2. g3 {[%emt 0:00:01]} Nf6 {[%emt
0:00:01]} 3. Bg2 {[%emt 0:00:00]} Bf5 {[%emt 0:00:01]} 4. d3 {[%emt 0:00:03]}
e6 {[%emt 0:00:01]} 5. Nbd2 {[%emt 0:00:01]} h6 {[%emt 0:00:02]} 6. O-O {[%emt
0:00:01]} Be7 {[%emt 0:00:03]} 7. Qe1 {[%emt 0:00:03]} Bh7 {[%emt 0:00:02]} 8.
e4 {[%emt 0:00:01]} O-O {[%emt 0:00:01]} 9. Qe2 {[%emt 0:00:05]} c5 {[%emt 0:
00:01]} 10. e5 {[%emt 0:00:02]} Nfd7 {[%emt 0:00:02]} 11. Re1 {[%emt 0:00:01]}
Nc6 {[%emt 0:00:02]} 12. Nf1 {[%emt 0:00:06]} b5 {[%emt 0:00:02]} 13. h4 {
[%emt 0:00:01]} Rc8 {[%emt 0:00:06]} 14. a3 {[%emt 0:00:09]} Qc7 {[%emt 0:00:
06]} 15. N1h2 {[%emt 0:00:05]} a5 {[%emt 0:00:14]} 16. h5 {[%emt 0:00:10]} b4 {
[%emt 0:00:06]} 17. axb4 {[%emt 0:00:12]} axb4 {[%emt 0:00:04]} 18. Ng4 {[%emt
0:00:02]} Nd4 {[%emt 0:00:09]} 19. Qd1 {[%emt 0:00:26]} Kh8 {[%emt 0:00:22]}
20. Bf4 {[%emt 0:00:11]} b3 {[%emt 0:00:14]} 21. cxb3 {[%emt 0:00:16]} Qb6 {
[%emt 0:00:18]} 22. Nxd4 {[%emt 0:00:49]} cxd4 {[%emt 0:00:02]} 23. Bf1 {[%emt
0:00:05]} Nc5 {[%emt 0:00:11]} 24. b4 {[%emt 0:00:15]} Na6 {[%emt 0:00:18]} 25.
b5 {[%emt 0:00:13]} Qxb5 {[%emt 0:00:22]} 26. Qf3 {[%emt 0:00:27]} Bf5 {[%emt
0:00:37] '} 27. Kg2 {[%emt 0:00:25]} Rc2 {[%emt 0:00:07]} 28. Rec1 {[%emt 0:00:
04]} Rxc1 {[%emt 0:00:10]} 29. Bxc1 {[%emt 0:00:05]} Rc8 {[%emt 0:00:02]} 30.
Bxh6 {[%emt 0:00:02]} Bxg4 {[%emt 0:00:09]} 31. Qxf7 {[%emt 0:00:01]} Bf8 {
[%emt 0:00:11]} 32. Bg5 {[%emt 0:00:02]} Nc5 {[%emt 0:00:08]} 33. h6 {[%emt 0:
00:03]} Qe8 {[%emt 0:00:02]} 34. hxg7+ {[%emt 0:00:05]} Bxg7 {[%emt 0:00:01]}
35. Qf4 {[%emt 0:00:01]} Qh5 {[%emt 0:00:01]} 36. f3 {[%emt 0:00:01]} Qh3+ {
[%emt 0:00:03]} 37. Kf2 {[%emt 0:00:02]} Qh2+ {[%emt 0:00:02]} 38. Bg2 {[%emt
0:00:01]} Nxd3+ {[%emt 0:00:02] Jan Smeets resigns  (Lag: Av=0.56s, max=1.9s)}
0-1

[Event "Dutch Internet Championship Final"]
[Site "playchess.com #038132"]
[Date "2011.06.18"]
[Round "4.10"]
[White "kingloek"]
[Black "Jan Smeets"]
[Result "1/2-1/2"]
[ECO "D06"]
[WhiteElo "2859"]
[BlackElo "2821"]
[PlyCount "140"]
[EventDate "2011.06.18"]
[EventType "match (blitz)"]
[TimeControl "180+3"]

1. d4 {[%emt 0:00:01]} d5 {[%emt 0:00:01]} 2. c4 {[%emt 0:00:01]} c5 {[%emt 0:
00:00]} 3. dxc5 {[%emt 0:00:05]} d4 {[%emt 0:00:04]} 4. Nf3 {[%emt 0:00:05]}
Nc6 {[%emt 0:00:03]} 5. e3 {[%emt 0:00:01]} e5 {[%emt 0:00:02]} 6. exd4 {[%emt
0:00:02]} exd4 {[%emt 0:00:01]} 7. Bd3 {[%emt 0:00:06]} Bxc5 {[%emt 0:00:03]}
8. O-O {[%emt 0:00:01]} Nf6 {[%emt 0:00:02]} 9. Re1+ {[%emt 0:00:02]} Be7 {
[%emt 0:00:04]} 10. Bf4 {[%emt 0:00:06]} O-O {[%emt 0:00:03]} 11. a3 {[%emt 0:
00:03]} a5 {[%emt 0:00:02]} 12. Nbd2 {[%emt 0:00:01]} Bg4 {[%emt 0:00:08]} 13.
Qb3 {[%emt 0:00:09]} Qd7 {[%emt 0:00:20]} 14. h3 {[%emt 0:00:16]} Bh5 {[%emt 0:
00:08]} 15. Qb5 {[%emt 0:00:01]} Bg6 {[%emt 0:00:20]} 16. Bxg6 {[%emt 0:00:04]}
hxg6 {[%emt 0:00:00]} 17. Rad1 {[%emt 0:00:18]} a4 {[%emt 0:00:05]} 18. Ne5 {
[%emt 0:00:13]} Nxe5 {[%emt 0:00:09]} 19. Bxe5 {[%emt 0:00:18]} Rfd8 {[%emt 0:
00:12]} 20. Nf3 {[%emt 0:00:31]} d3 {[%emt 0:00:14]} 21. Re3 {[%emt 0:00:10]}
Qxb5 {[%emt 0:00:11]} 22. cxb5 {[%emt 0:00:02]} Rd5 {[%emt 0:00:01]} 23. b6 {
[%emt 0:00:23]} Bc5 {[%emt 0:00:10]} 24. Rexd3 {[%emt 0:00:03]} Rxd3 {[%emt 0:
00:00]} 25. Rxd3 {[%emt 0:00:01]} Bxb6 {[%emt 0:00:00]} 26. Bxf6 {[%emt 0:00:
20]} gxf6 {[%emt 0:00:01]} 27. Rd7 {[%emt 0:00:01]} Rc8 {[%emt 0:00:01]} 28.
Rxb7 {[%emt 0:00:09]} Rc1+ {[%emt 0:00:01]} 29. Kh2 {[%emt 0:00:01]} Bxf2 {
[%emt 0:00:00]} 30. Rb4 {[%emt 0:00:21]} Bc5 {[%emt 0:00:09]} 31. Rxa4 {[%emt
0:00:02]} Bd6+ {[%emt 0:00:02]} 32. g3 {[%emt 0:00:01]} Rc2+ {[%emt 0:00:02]}
33. Kg1 {[%emt 0:00:02]} Rxb2 {[%emt 0:00:10]} 34. g4 {[%emt 0:00:05]} Rb3 {
[%emt 0:00:04]} 35. Kg2 {[%emt 0:00:04]} Bxa3 {[%emt 0:00:01]} 36. Rd4 {[%emt
0:00:05]} Bc5 {[%emt 0:00:06]} 37. Rd2 {[%emt 0:00:01]} Kg7 {[%emt 0:00:02]}
38. Rc2 {[%emt 0:00:01]} Be3 {[%emt 0:00:01]} 39. Re2 {[%emt 0:00:01]} Bf4 {
[%emt 0:00:01]} 40. Rc2 {[%emt 0:00:03]} Kf8 {[%emt 0:00:01]} 41. Re2 {[%emt 0:
00:02]} Rc3 {[%emt 0:00:08]} 42. Kf2 {[%emt 0:00:06]} Rc5 {[%emt 0:00:05]} 43.
Re4 {[%emt 0:00:02]} Bc7 {[%emt 0:00:02]} 44. Re2 {[%emt 0:00:05]} f5 {[%emt 0:
00:05]} 45. gxf5 {[%emt 0:00:01]} Rxf5 {[%emt 0:00:01]} 46. Kg2 {[%emt 0:00:01]
} Rc5 {[%emt 0:00:01]} 47. Kf2 {[%emt 0:00:05]} Kg7 {[%emt 0:00:00]} 48. Kg2 {
[%emt 0:00:01]} Rc3 {[%emt 0:00:01]} 49. Ra2 {[%emt 0:00:08]} Kf6 {[%emt 0:00:
07]} 50. Kf2 {[%emt 0:00:02]} Kf5 {[%emt 0:00:06]} 51. Rb2 {[%emt 0:00:04]} Bd6
{[%emt 0:00:07]} 52. Kg2 {[%emt 0:00:10]} Kf4 {[%emt 0:00:05]} 53. Ng1 {[%emt
0:00:05]} Rg3+ {[%emt 0:00:09]} 54. Kh1 {[%emt 0:00:04]} Ra3 {[%emt 0:00:15]}
55. Rf2+ {[%emt 0:00:12]} Kg3 {[%emt 0:00:03]} 56. Rxf7 {[%emt 0:00:02]} Bc5 {
[%emt 0:00:07]} 57. Rf6 {[%emt 0:00:13]} g5 {[%emt 0:00:08]} 58. Rf5 {[%emt 0:
00:01]} Be7 {[%emt 0:00:25] '} 59. Rf1 {[%emt 0:00:03]} Rd3 {[%emt 0:00:10]}
60. Rf5 {[%emt 0:00:06]} Bd8 {[%emt 0:00:02]} 61. Re5 {[%emt 0:00:06]} Rd1 {
[%emt 0:00:15]} 62. Re2 {[%emt 0:00:01]} Bb6 {[%emt 0:00:05]} 63. Rg2+ {[%emt
0:00:01]} Kh4 {[%emt 0:00:15]} 64. Rg4+ {[%emt 0:00:01]} Kh5 {[%emt 0:00:01]}
65. Kh2 {[%emt 0:00:01]} Rd2+ {[%emt 0:00:08]} 66. Kh1 {[%emt 0:00:01]} Rf2 {
[%emt 0:00:04]} 67. Rg2 {[%emt 0:00:04]} Rxg2 {[%emt 0:00:08]} 68. Kxg2 {[%emt
0:00:01]} Bxg1 {[%emt 0:00:00]} 69. Kxg1 {[%emt 0:00:01]} g4 {[%emt 0:00:00]}
70. hxg4+ {[%emt 0:00:01]} Kxg4 {[%emt 0:00:01] (Lag: Av=0.97s, max=8.5s)}
1/2-1/2

[Event "Dutch Internet Championship Final"]
[Site "playchess.com #038132"]
[Date "2011.06.18"]
[Round "4.11"]
[White "Jan Smeets"]
[Black "kingloek"]
[Result "0-1"]
[ECO "B90"]
[WhiteElo "2823"]
[BlackElo "2857"]
[PlyCount "104"]
[EventDate "2011.06.18"]
[EventType "match (blitz)"]
[TimeControl "180+3"]

1. e4 {[%emt 0:00:01]} c5 {[%emt 0:00:02]} 2. Nf3 {[%emt 0:00:01]} d6 {[%emt 0:
00:01]} 3. d4 {[%emt 0:00:02]} cxd4 {[%emt 0:00:01]} 4. Nxd4 {[%emt 0:00:00]}
Nf6 {[%emt 0:00:01]} 5. Nc3 {[%emt 0:00:00]} a6 {[%emt 0:00:01]} 6. Be3 {[%emt
0:00:01]} e5 {[%emt 0:00:02]} 7. Nf3 {[%emt 0:00:01]} Be7 {[%emt 0:00:01]} 8.
Bc4 {[%emt 0:00:04]} O-O {[%emt 0:00:01]} 9. O-O {[%emt 0:00:03]} Nc6 {[%emt 0:
00:02]} 10. Qe2 {[%emt 0:00:40]} b5 {[%emt 0:00:24]} 11. Bb3 {[%emt 0:00:12]}
Be6 {[%emt 0:00:33]} 12. Bg5 {[%emt 0:00:18]} Nd7 {[%emt 0:00:21]} 13. Bxe7 {
[%emt 0:00:02]} Qxe7 {[%emt 0:00:02]} 14. Nd5 {[%emt 0:00:04]} Qd8 {[%emt 0:00:
01]} 15. Rad1 {[%emt 0:00:11]} Na5 {[%emt 0:00:05]} 16. Rd2 {[%emt 0:00:39]}
Nxb3 {[%emt 0:00:23]} 17. cxb3 {[%emt 0:00:07]} Bxd5 {[%emt 0:00:03]} 18. Rxd5
{[%emt 0:00:05]} Nf6 {[%emt 0:00:01]} 19. Rd3 {[%emt 0:00:14]} Qc7 {[%emt 0:00:
16]} 20. Nh4 {[%emt 0:00:25]} g6 {[%emt 0:00:08]} 21. f4 {[%emt 0:00:02]} Qc6 {
[%emt 0:00:15]} 22. Re3 {[%emt 0:00:37]} Qc5 {[%emt 0:00:43] '} 23. fxe5 {
[%emt 0:00:12]} Ng4 {[%emt 0:00:07]} 24. Rff3 {[%emt 0:00:07]} dxe5 {[%emt 0:
00:06]} 25. h3 {[%emt 0:00:03]} Nxe3 {[%emt 0:00:01]} 26. Rxe3 {[%emt 0:00:00]}
Rad8 {[%emt 0:00:02]} 27. Kh2 {[%emt 0:00:01]} Qc1 {[%emt 0:00:07]} 28. Qf3 {
[%emt 0:00:07]} Rd1 {[%emt 0:00:04]} 29. Kg3 {[%emt 0:00:04]} Rf1 {[%emt 0:00:
03]} 30. Qe2 {[%emt 0:00:01]} Rd8 {[%emt 0:00:03]} 31. Nf3 {[%emt 0:00:01]}
Rfd1 {[%emt 0:00:06]} 32. Qf2 {[%emt 0:00:06]} f6 {[%emt 0:00:09]} 33. Kh2 {
[%emt 0:00:02]} Kg7 {[%emt 0:00:02]} 34. b4 {[%emt 0:00:01]} R8d7 {[%emt 0:00:
02]} 35. a3 {[%emt 0:00:01]} Rh1+ {[%emt 0:00:07]} 36. Kg3 {[%emt 0:00:00]}
Rhd1 {[%emt 0:00:01]} 37. Kh2 {[%emt 0:00:01]} R1d3 {[%emt 0:00:03]} 38. Re2 {
[%emt 0:00:02]} Qf4+ {[%emt 0:00:02]} 39. Kg1 {[%emt 0:00:03]} Rd1+ {[%emt 0:
00:01]} 40. Ne1 {[%emt 0:00:01]} Qxf2+ {[%emt 0:00:02]} 41. Kxf2 {[%emt 0:00:
00]} R7d2 {[%emt 0:00:01]} 42. Ke3 {[%emt 0:00:01]} Rxe2+ {[%emt 0:00:02]} 43.
Kxe2 {[%emt 0:00:00]} Rd4 {[%emt 0:00:01]} 44. Ke3 {[%emt 0:00:01]} f5 {[%emt
0:00:02]} 45. exf5 {[%emt 0:00:00]} gxf5 {[%emt 0:00:01]} 46. Nd3 {[%emt 0:00:
00]} Kf6 {[%emt 0:00:08]} 47. Nc5 {[%emt 0:00:00]} Rd6 {[%emt 0:00:01]} 48. g4
{[%emt 0:00:03]} h6 {[%emt 0:00:09]} 49. b3 {[%emt 0:00:03]} f4+ {[%emt 0:00:
07]} 50. Ke4 {[%emt 0:00:07]} Rd4+ {[%emt 0:00:02]} 51. Kf3 {[%emt 0:00:01]}
Rd1 {[%emt 0:00:01]} 52. Nxa6 {[%emt 0:00:08]} Rd3+ {[%emt 0:00:02] Jan Smeets
resigns  (Lag: Av=0.76s, max=8.0s)} 0-1